bitfinex/quotes_ETHUSD_20251008
["timestamp","ask_amount","ask_price","bid_price","bid_amount"]
[1759946596623,4.76003396,4532.2,4531.1,0.018]
[1759946596955,4.12643396,4532.2,4531.1,0.04006969]
[1759946597157,6.23679744,4532.2,4531.1,0.018]
[1759946597325,6.22571361,4532.2,4531.1,0.018]
[1759946597721,6.22571361,4532.2,4531.1,0.175]
[1759946598257,4.01927965,4532.2,4531.1,0.175]
[1759946598470,6.23679744,4532.2,4531.1,0.175]
[1759946598640,0.6336,4532.0,4530.7,2.20714507]
[1759946598836,4.01927965,4532.2,4530.8,5.297]
[1759946598837,1.92,4531.8,4530.8,5.297]
[1759946599043,3.31015181,4531.9,4530.1,0.01]
[1759946599044,2.20682566,4531.4,4530.1,0.01]
[1759946599352,2.20697531,4531.1,4530.2,0.696]
[1759946599569,0.22888383,4531.0,4530.4,2.20727712]
[1759946599854,1.92,4531.5,4530.1,2.21742234]
[1759946599855,0.01108383,4531.4,4530.6,2.20717168]
[1759946600160,0.50294185,4531.3,4530.7,6.306]
[1759946600325,0.01108383,4531.2,4530.7,6.306]
[1759946600525,0.2178,4531.1,4530.7,6.306]
[1759946600756,0.2178,4531.0,4530.7,6.306]
[1759946600958,0.01108383,4531.2,4530.8,0.02207115]
[1759946600959,11.39551261,4531.2,4530.8,0.02207115]
[1759946601157,1.26377965,4532.2,4530.1,0.01]
[1759946601158,0.22888383,4530.9,4530.1,0.01]
[1759946601461,0.22888383,4530.9,4530.2,2.295]
[1759946601462,2.65084497,4530.9,4530.2,2.295]
[1759946601656,1.92,4530.8,4530.2,2.295]
[1759946601840,0.01108383,4530.7,4530.2,4.50240541]
[1759946602162,0.43268838,4530.9,4530.2,4.50240541]
[1759946602163,0.2178,4530.9,4530.2,4.50240376]
[1759946602363,0.2178,4530.9,4530.3,2.20735743]
[1759946602669,0.2178,4530.9,4530.3,2.20735003]
[1759946602957,0.2178,4530.9,4530.2,2.295]
[1759946603125,0.01108383,4530.8,4530.2,4.5024001]
[1759946603330,2.21820821,4530.8,4530.2,2.295]
[1759946603641,2.20721317,4530.6,4530.1,0.01]
[1759946603824,2.20731061,4530.4,4530.1,0.01]
[1759946604031,2.20740806,4530.2,4530.1,0.01]
[1759946604223,2.20740806,4530.2,4528.1,2.65579193]
[1759946604224,2.20756307,4529.9,4528.1,0.4474]
[1759946604462,13.60272266,4530.7,4528.1,0.4474]
[1759946604463,0.01108383,4529.8,4528.7,2.20810196]
[1759946604679,2.66586532,4529.7,4528.8,2.20808898]
[1759946604833,1.93108383,4529.6,4528.8,7.35208898]
[1759946605028,1.93108383,4529.6,4528.9,8.602]
[1759946605229,1.93108383,4529.6,4529.0,6.307]
[1759946605230,2.39077875,4529.6,4529.0,6.307]
[1759946605472,0.47077875,4529.6,4529.0,6.307]
[1759946605653,0.01108383,4529.6,4529.0,6.307]
[1759946605856,0.01108383,4529.6,4529.0,8.51497605]
[1759946606262,0.01108383,4529.6,4528.9,2.20803752]
[1759946606472,0.01108383,4529.6,4529.0,6.307]
[1759946606774,0.2308,4530.3,4529.1,6.306]
[1759946606942,0.01108383,4530.2,4529.6,2.20767041]
[1759946607143,0.237,4530.1,4529.1,8.601]
[1759946607338,0.237,4530.1,4529.2,2.2078943]
[1759946607339,0.25663678,4530.0,4529.2,2.2078943]
[1759946607539,0.01108383,4530.3,4529.7,2.20761256]
[1759946607773,0.01108383,4530.3,4529.4,2.20779794]
[1759946607973,0.01108383,4530.3,4529.3,6.306]
[1759946608144,0.6336,4530.5,4529.3,6.306]
[1759946608145,1.93108383,4530.4,4529.4,2.20779734]
[1759946608349,1.93108383,4530.4,4529.3,6.306]
[1759946608671,0.43753846,4530.3,4529.8,2.2075988]
[1759946608972,0.01108383,4530.4,4529.8,2.2075988]
[1759946609155,0.01108383,4530.5,4529.7,0.02207651]
[1759946609400,0.01108383,4530.5,4529.8,2.20759538]
[1759946609546,0.01108383,4530.5,4529.9,2.20755189]
[1759946609751,0.01108383,4530.5,4530.0,6.305]
[1759946609947,2.1608,4530.9,4530.2,2.20740746]
[1759946609948,0.25188383,4530.9,4530.2,2.20740746]
[1759946610149,0.01,4530.9,4530.4,2.2072958]
[1759946610370,0.01,4530.9,4530.5,8.601]
[1759946610570,0.01,4530.9,4530.5,10.80825523]
[1759946611069,0.01,4530.9,4530.5,8.601]
[1759946611239,0.01,4530.9,4530.6,0.02207213]
[1759946611439,0.01,4530.9,4530.5,10.80824666]
[1759946611636,0.01,4530.9,4530.6,2.2292639]
[1759946611872,0.01,4530.9,4530.7,2.20712796]
[1759946612068,0.01,4530.9,4530.8,0.02207115]
[1759946612272,0.01,4530.9,4530.8,2.20711574]
[1759946612655,0.1096,4530.8,4530.6,2.20721173]
[1759946612857,0.1096,4530.8,4530.7,2.20716445]
[1759946613080,0.01,4530.9,4530.5,10.80825529]
[1759946613266,0.1096,4530.6,4530.5,10.80826189]
[1759946614183,0.1096,4530.6,4530.5,6.305]
[1759946614393,0.1096,4530.6,4530.5,8.599]
[1759946614546,0.1096,4530.6,4529.8,0.1106]
[1759946614746,0.1096,4530.6,4530.3,2.20734289]
[1759946614966,0.1096,4530.6,4529.9,2.20752263]
[1759946614967,0.237,4530.6,4529.9,2.20752263]
[1759946615254,0.237,4530.5,4530.0,6.489]
[1759946615453,0.237,4530.4,4530.0,6.489]
[1759946615687,0.22678383,4530.5,4530.0,6.489]
[1759946615996,0.22678383,4530.5,4529.9,2.20754169]
[1759946615997,0.1096,4530.0,4529.9,2.20754169]
[1759946616161,0.1096,4530.0,4529.9,10.80754169]
[1759946616766,0.1096,4530.0,4529.9,11.24494169]
[1759946617102,0.01,4530.9,4529.9,1.78275919]
[1759946617278,0.01,4530.9,4530.8,2.15711574]
[1759946617597,0.01,4530.9,4530.8,8.607]
[1759946617795,0.01,4530.9,4530.8,10.81411574]
[1759946617995,0.01,4530.9,4530.8,10.81511574]
[1759946618195,0.01,4530.9,4530.8,11.25251574]
[1759946618696,0.01,4530.9,4530.8,11.25151574]
[1759946619268,0.01,4530.9,4530.8,2.64451574]
[1759946619470,0.01,4530.9,4530.8,20.43451574]
[1759946619674,0.01,4530.9,4530.8,2.64451574]
[1759946619966,0.01,4530.9,4530.8,20.43251574]
[1759946621534,0.01,4530.9,4530.8,10.81111574]
[1759946621737,0.01,4530.9,4530.8,11.24851574]
[1759946622736,0.01,4530.9,4530.8,20.43051574]
[1759946623022,0.01,4530.9,4530.8,2.64451574]
[1759946623225,0.01,4530.9,4530.8,18.13551574]
[1759946623430,0.01,4530.9,4530.8,10.80911574]
[1759946623603,0.002,4531.1,4531.0,2.20701831]
[1759946623804,0.002,4531.1,4531.0,2.22908849]
[1759946623994,0.002,4531.1,4531.0,2.67341831]
[1759946624192,0.002,4531.1,4531.0,20.46241831]
[1759946624736,0.002,4531.1,4531.0,8.98441831]
[1759946624909,0.002,4531.1,4531.0,2.67341831]
[1759946625113,0.002,4531.1,4531.0,20.46141831]
[1759946625753,0.002,4531.1,4531.0,22.38141831]
[1759946626047,0.002,4531.1,4531.0,22.38041831]
[1759946627318,0.002,4531.1,4531.0,22.49001831]
[1759946627718,0.002,4531.1,4531.0,23.12361831]
[1759946627919,0.01,4531.9,4531.4,2.20682349]
[1759946628113,0.01,4531.9,4531.8,2.31622871]
[1759946628316,1e-08,4531.9,4531.8,8.64829499]
[1759946628521,1e-08,4531.9,4531.8,8.62622871]
[1759946628735,1e-08,4531.9,4531.8,12.28792419]
[1759946630025,1e-08,4531.9,4531.8,23.76392419]
[1759946630426,1e-08,4531.9,4531.8,21.46892419]
[1759946630650,1e-08,4531.9,4531.8,23.76392419]
[1759946630951,1e-08,4531.9,4531.8,24.39752419]
[1759946631248,0.00200001,4531.9,4531.8,24.39752419]
[1759946631454,0.00200001,4531.9,4531.8,6.61152419]
[1759946631615,0.00200001,4531.9,4531.8,27.26852419]
[1759946631948,0.00200001,4531.9,4531.8,23.65232419]
[1759946632161,0.00200001,4531.9,4531.8,24.28592419]
[1759946632540,0.00200001,4531.9,4531.8,6.50192419]
[1759946632739,0.00200001,4531.9,4531.8,24.28692419]
[1759946632939,0.00200001,4531.9,4531.8,6.50192419]
[1759946633147,0.00200001,4531.9,4531.8,24.28492419]
[1759946633474,0.00200001,4531.9,4531.8,5.86832419]
[1759946633646,0.00200001,4531.9,4531.8,23.65132419]
[1759946633844,0.00200001,4531.9,4531.8,5.86832419]
[1759946634173,0.00200001,4531.9,4531.8,23.65032419]
[1759946634646,0.00200001,4531.9,4531.8,5.86832419]
[1759946634977,0.00200001,4531.9,4531.8,23.64932419]
[1759946635377,0.00200001,4531.9,4531.8,21.72932419]
[1759946635735,0.00200001,4531.9,4531.8,3.94832419]
[1759946636040,0.00200001,4531.9,4531.8,20.45402871]
[1759946636461,0.00200001,4531.9,4531.8,2.67302871]
[1759946636659,0.00200001,4531.9,4531.8,2.20662871]
[1759946637249,0.00200001,4531.9,4531.8,10.80862871]
[1759946637654,0.00200001,4531.9,4531.8,11.27832871]
[1759946638170,0.00200001,4531.9,4531.8,10.80862871]
[1759946638370,0.00200001,4531.9,4531.8,11.27832871]
[1759946638875,0.00200001,4531.9,4531.8,10.80862871]
[1759946639249,0.00200001,4531.9,4531.8,11.27832871]
[1759946639639,0.00200001,4531.9,4531.8,2.67632871]
[1759946639844,0.00200001,4531.9,4531.8,11.27832871]
[1759946640063,0.00200001,4531.9,4531.8,2.20662871]
[1759946640454,0.00200001,4531.9,4531.1,0.4697]
[1759946640654,0.2122,4531.8,4530.2,0.2227]
[1759946640851,0.2122,4531.8,4529.8,0.001]
[1759946641055,0.01108383,4531.7,4530.3,2.20731573]
[1759946641272,0.22348383,4531.7,4529.8,0.001]
[1759946641474,2.20696203,4531.2,4530.2,2.20736521]
[1759946641672,0.01108383,4531.1,4529.8,0.001]
[1759946641872,0.1096,4530.6,4530.2,2.20740488]
[1759946642172,0.2124,4530.5,4530.3,0.086]
[1759946642371,0.1096,4530.6,4530.4,4.273]
[1759946642577,0.1096,4530.6,4530.4,6.568]
[1759946643086,0.2124,4530.5,4530.0,2.20748141]
[1759946643301,0.2124,4530.5,4530.1,8.603]
[1759946643439,0.1096,4530.6,4529.8,0.1106]
[1759946643645,0.1096,4530.6,4530.4,2.20730274]
[1759946643845,0.1096,4530.6,4530.5,2.642]
[1759946644478,0.322,4530.6,4530.5,2.642]
[1759946645680,0.1096,4530.6,4530.5,2.642]
[1759946645887,0.1096,4530.7,4530.6,2.20716551]
[1759946646084,0.1096,4530.7,4530.6,2.22923764]
[1759946646381,0.43830001,4531.9,4531.1,2.20696782]
[1759946646581,0.43830001,4531.9,4530.6,0.49177213]
[1759946646582,0.43830001,4531.9,4531.2,6.9210692]
[1759946646781,0.43830001,4531.9,4531.3,4.604]
[1759946646984,0.01108383,4531.8,4531.3,4.604]
[1759946647212,0.23693838,4531.7,4531.3,4.604]
[1759946647413,0.2124,4531.6,4531.3,4.604]
[1759946647717,0.22590001,4531.9,4531.3,4.604]
[1759946647718,0.01308384,4531.9,4531.3,4.604]
[1759946648212,0.00200001,4531.9,4531.6,2.20668516]
[1759946648417,0.00200001,4531.9,4531.7,0.02206677]
[1759946648720,0.00200001,4531.9,4531.8,6.307]
[1759946649090,0.00200001,4531.9,4530.9,0.1096]
[1759946649293,0.1096,4531.6,4531.2,0.4697]
[1759946649490,0.11160001,4531.9,4531.8,2.20662871]
[1759946649810,0.11160001,4531.9,4531.8,10.80862871]
[1759946650112,0.00200001,4531.9,4531.8,11.27832871]
[1759946650316,0.00200001,4531.9,4531.8,10.80862871]
[1759946650519,0.00200001,4531.9,4531.4,0.1096]
[1759946650698,0.00200001,4531.9,4531.3,2.20786091]
[1759946650699,0.1096,4531.7,4531.5,6.569]
[1759946651286,0.1096,4531.7,4531.6,6.306]
[1759946651488,0.1096,4531.7,4531.6,8.6]
[1759946651698,0.1096,4531.7,4531.6,2.2067261]
[1759946652082,0.00200001,4531.9,4531.8,2.20662871]
[1759946652602,0.00200001,4531.9,4531.8,3.74962932]
[1759946653520,1e-08,4532.4,4531.9,2.20658002]
[1759946653739,0.60029962,4534.9,4533.3,2.2058556]
[1759946653740,0.1096,4534.1,4533.3,2.2058556]
[1759946653914,0.1096,4534.1,4532.4,0.6336]
[1759946653915,0.1096,4534.1,4533.8,2.2056553]
[1759946654241,0.01,4534.9,4533.8,8.4526553]
[1759946654523,0.1096,4534.6,4533.8,21.63600107]
[1759946654746,0.1096,4534.6,4533.8,21.63500107]
[1759946654918,0.01,4534.9,4533.8,21.63500107]
[1759946655114,0.1196,4534.9,4533.8,21.63500107]
[1759946655652,0.1196,4534.9,4533.8,3.85300107]
[1759946655859,0.1196,4534.9,4533.8,20.5669553]
[1759946655860,0.01,4534.9,4533.8,20.5669553]
[1759946656056,0.1096,4534.6,4533.8,0.1096]
[1759946656234,0.1096,4534.6,4533.8,5.1172553]
[1759946656443,0.1096,4534.6,4533.8,5.5869553]
[1759946656754,0.1096,4534.6,4533.8,7.28422499]
[1759946656952,0.1096,4534.6,4533.8,5.5869553]
[1759946657449,0.1096,4534.6,4533.8,20.5649553]
[1759946657653,0.1096,4534.6,4533.8,20.5639553]
[1759946658374,0.1096,4534.6,4533.8,2.7849553]
[1759946658522,0.1096,4534.6,4533.8,20.5619553]
[1759946659553,0.1096,4534.6,4533.8,18.3563]
[1759946659757,2.20552685,4534.1,4533.8,0.1096]
[1759946660041,2.64570665,4533.9,4533.8,0.1]
[1759946660262,2.20573354,4533.7,4533.2,2.294]
[1759946660457,2.20573354,4533.7,4532.5,2.20627968]
[1759946660458,0.01108383,4533.6,4533.3,2.643]
[1759946660745,2.20600412,4533.1,4531.4,0.6853]
[1759946661042,0.01108383,4533.3,4532.5,2.2062603]
[1759946661242,0.01108383,4533.3,4532.6,4.001]
[1759946661448,2.45152287,4533.9,4532.6,4.001]
[1759946661449,0.01108383,4533.8,4532.8,2.20613875]
[1759946661744,0.01108383,4533.8,4532.9,0.02206093]
[1759946662042,0.1942,4533.7,4533.0,6.31]
[1759946662271,0.1942,4533.7,4531.7,9.178]
[1759946662272,0.20528383,4533.6,4531.4,0.2156]
[1759946662475,0.21252838,4533.5,4531.4,0.2156]
[1759946662637,0.21252838,4533.5,4531.5,13.321]
[1759946662638,2.20616256,4532.8,4531.5,13.321]
[1759946662838,0.1942,4532.7,4531.8,2.20658444]
[1759946663035,0.1942,4532.7,4532.0,2.20652629]
[1759946663241,0.1942,4532.7,4532.1,2.294]
[1759946663487,0.1942,4532.7,4531.3,0.001]
[1759946663650,0.1942,4532.7,4532.1,2.20647935]
[1759946663851,0.1942,4532.7,4532.2,2.525]
[1759946664050,0.1942,4532.7,4531.9,2.20654066]
[1759946664292,0.1942,4532.7,4532.0,10.81551632]
[1759946664455,0.20528383,4532.7,4532.1,8.608]
[1759946664652,0.1942,4532.7,4532.2,8.608]
[1759946664863,0.1942,4533.2,4532.3,8.608]
[1759946665079,0.1942,4533.2,4531.5,0.4543]
[1759946665080,0.01108383,4533.1,4532.1,2.20648264]
[1759946665284,0.01108383,4533.1,4532.4,6.314]
[1759946665452,0.01108383,4533.1,4532.2,4.50042655]
[1759946665453,0.01108383,4533.1,4532.5,3.823]
[1759946665787,2.20609526,4532.9,4532.6,8.608]
[1759946666094,0.01108383,4532.8,4532.7,2.294]
[1759946667373,0.01108383,4532.8,4532.0,2.20648377]
[1759946667582,0.1942,4532.7,4532.1,8.607]
[1759946667877,0.1942,4532.7,4532.1,10.81347829]
[1759946668054,0.1942,4532.7,4532.1,8.607]
[1759946668375,0.1942,4532.7,4530.6,4.1271717]
[1759946668376,2.12528383,4532.6,4532.2,6.311]
[1759946668576,0.1942,4532.5,4532.2,6.311]
[1759946668873,2.20638527,4532.3,4532.2,6.311]
[1759946669074,2.40058527,4532.3,4532.2,6.311]
[1759946669456,0.1942,4533.0,4532.2,6.311]
[1759946669720,0.59229962,4534.0,4532.2,6.311]
[1759946669721,2.45152378,4533.9,4533.1,2.20599384]
[1759946669885,0.01108383,4533.8,4533.2,8.604]
[1759946670092,0.01108383,4533.8,4533.3,2.294]
[1759946670387,0.02108383,4533.9,4533.3,2.31605898]
[1759946670601,2.22669384,4533.9,4533.3,2.294]
[1759946670776,0.02108383,4533.9,4533.3,2.294]
[1759946671286,0.02108383,4533.9,4531.9,0.4543]
[1759946671287,0.1096,4533.3,4531.9,0.4543]
[1759946671471,0.1096,4533.3,4532.5,2.2062491]
[1759946671824,0.01108383,4533.2,4532.6,8.605]
[1759946671978,2.21704341,4533.2,4532.7,6.311]
[1759946672189,0.1096,4532.6,4531.9,0.1096]
[1759946672389,2.41916363,4532.8,4531.9,2.20653719]
[1759946672606,0.1096,4532.3,4531.9,2.20653719]
[1759946672803,0.1096,4532.3,4532.2,2.20643396]
[1759946673214,0.1096,4532.3,4532.2,2.68279829]
[1759946673523,0.1096,4532.3,4532.2,2.66073396]
[1759946673821,0.1096,4532.6,4532.2,0.47636433]
[1759946674011,0.1096,4532.6,4532.5,2.20628792]
[1759946674218,0.1096,4532.6,4532.3,0.4543]
[1759946674392,0.1096,4532.6,4532.5,10.81228792]
[1759946674722,0.1096,4532.6,4532.5,13.07336336]
[1759946675113,0.1096,4532.6,4532.5,12.61906336]
[1759946675423,0.213,4532.6,4531.3,0.001]
[1759946675625,0.01108383,4532.5,4531.3,0.001]
[1759946675812,0.213,4532.6,4531.3,0.001]
[1759946676138,0.01308383,4533.5,4531.9,2.314]
[1759946676139,0.213,4532.4,4531.9,2.314]
[1759946676428,0.23098383,4532.3,4531.3,0.001]
[1759946676593,2.42338002,4531.9,4531.7,2.294]
[1759946676789,2.42338002,4531.9,4531.8,3.391]
[1759946676992,2.64328002,4531.9,4531.8,3.391]
[1759946677220,2.64328002,4531.9,4531.8,7.495]
[1759946677707,5.04936742,4531.9,4531.8,0.001]
[1759946677916,5.68296742,4531.9,4531.8,0.001]
[1759946679544,5.88774408,4531.9,4531.8,0.001]
[1759946679847,5.68296742,4531.9,4531.8,0.001]
[1759946680059,6.35967221,4531.9,4531.8,0.001]
[1759946680209,5.88776677,4531.9,4531.8,0.001]
[1759946680533,5.68296742,4531.9,4531.8,0.001]
[1759946680832,4.56328002,4531.9,4531.8,0.001]
[1759946681036,2.1399,4531.9,4531.8,0.001]
[1759946681204,1.93108383,4531.9,4531.8,0.001]
[1759946681406,4.12658002,4531.9,4531.8,0.001]
[1759946681721,1.92,4531.9,4531.8,0.001]
[1759946682304,4.34648002,4531.9,4531.8,0.001]
[1759946682733,4.57446385,4531.9,4531.8,0.001]
[1759946683031,4.56338002,4531.9,4531.8,0.001]
[1759946683624,2.3568,4531.9,4531.8,0.001]
[1759946683815,2.15098383,4531.9,4531.8,0.001]
[1759946684140,1.93108383,4531.9,4531.8,0.001]
[1759946684439,4.13766385,4531.9,4531.8,0.001]
[1759946684829,1.92,4531.9,4531.8,0.001]
[1759946685431,2.2174287,4532.4,4531.8,0.001]
[1759946685637,2.20627306,4532.6,4531.9,2.753]
[1759946685835,4.36888037,4532.6,4532.0,2.295]
[1759946686061,4.12629291,4532.5,4532.0,2.295]
[1759946686356,2.2064811,4532.2,4532.0,2.295]
[1759946686742,2.20639571,4532.3,4532.0,2.295]
[1759946687262,2.20658002,4531.9,4531.8,0.001]
[1759946687439,5.0109585,4531.9,4531.8,0.001]
[1759946687760,5.21967467,4531.9,4531.8,0.001]
[1759946688860,5.85327467,4531.9,4531.8,0.001]
[1759946689362,6.530957,4531.9,4531.8,0.001]
[1759946690326,6.52803322,4531.9,4531.8,0.001]
[1759946692061,4.34638002,4531.9,4531.8,0.001]
[1759946692267,5.20796385,4531.9,4531.8,0.001]
[1759946692558,5.19688002,4531.9,4531.8,0.001]
[1759946692958,5.87463817,4531.9,4531.8,0.001]
[1759946696189,5.40202008,4531.9,4531.8,0.001]
[1759946696486,7.65379053,4531.9,4531.8,0.001]
[1759946697069,7.44865047,4531.9,4531.8,0.001]
[1759946697584,0.58959327,4532.8,4531.8,3.738]
[1759946697789,0.002,4532.9,4531.9,2.20658002]
[1759946697790,0.1096,4532.0,4531.9,2.20658002]
[1759946697994,0.1096,4532.0,4531.9,2.63818002]
[1759946698604,0.1096,4532.0,4531.9,2.66024582]
[1759946699123,0.002,4532.9,4531.9,0.4536658]
[1759946699396,0.002,4532.9,4532.4,2.20633397]
[1759946699720,0.002,4532.9,4532.5,0.02206287]
[1759946699898,2.2192075,4532.9,4532.6,6.31]
[1759946700264,0.002,4532.9,4532.7,2.3170619]
[1759946700476,0.002,4532.9,4532.8,2.63774189]
[1759946700664,0.002,4532.9,4532.8,3.98484587]
[1759946700864,0.002,4532.9,4532.8,1.34710398]
[1759946701172,0.002,4532.9,4532.8,4.443]
[1759946701490,0.002,4532.9,4532.8,6.64914189]
[1759946701666,0.002,4532.9,4532.8,7.08074189]
[1759946701866,0.002,4532.9,4532.8,9.00074189]
[1759946702687,0.002,4532.9,4532.8,0.4316]
[1759946702885,0.002,4532.9,4532.3,0.4316]
[1759946703186,0.002,4532.9,4532.7,2.20615122]
[1759946703397,0.002,4532.9,4532.7,0.95914878]
[1759946703611,0.002,4532.9,4532.0,1.92]
[1759946703911,0.002,4532.9,4531.9,0.4316]
[1759946703912,0.002,4532.9,4532.1,17.791]
[1759946704320,0.002,4532.9,4532.4,2.2062915]
[1759946704492,0.002,4532.9,4532.5,4.50127168]
[1759946704688,0.002,4532.9,4532.7,2.20614275]
[1759946704890,0.002,4532.9,4532.8,6.315]
[1759946707917,0.002,4532.9,4532.1,9.3966]
[1759946707918,0.2159,4532.9,4532.7,6.312]
[1759946708119,0.2139,4532.8,4532.7,6.312]
[1759946708804,0.002,4532.9,4532.7,6.312]
[1759946709001,0.002,4532.9,4532.8,2.2282033]
[1759946709186,0.002,4532.9,4532.7,7.1727]
[1759946709385,0.002,4532.9,4532.7,6.312]
[1759946709590,0.214,4532.8,4531.8,0.4326]
[1759946709817,0.214,4532.7,4531.8,0.001]
[1759946710018,0.01108383,4532.6,4531.8,0.001]
[1759946710420,2.42638002,4531.9,4531.8,0.001]
[1759946710625,2.84042349,4531.4,4531.1,0.01]
[1759946710823,4.77150732,4531.4,4531.1,0.01]
[1759946711116,4.97342349,4531.4,4531.1,0.01]
[1759946712190,0.213,4531.8,4531.1,0.01]
[1759946712392,0.79114826,4532.8,4531.1,0.01]
[1759946712393,0.213,4532.3,4531.2,0.196]
[1759946712590,0.01108383,4532.2,4531.3,0.02306872]
[1759946712920,0.1096,4531.6,4531.5,2.20677479]
[1759946713123,0.1096,4531.6,4531.5,3.49000488]
[1759946713286,0.1096,4531.6,4531.5,3.05840488]
[1759946713494,0.1096,4531.6,4531.3,0.001]
[1759946713715,0.1096,4531.6,4531.4,0.235]
[1759946713994,2.20682349,4531.4,4531.3,0.001]
[1759946714190,4.76042349,4531.4,4531.3,0.001]
[1759946714390,4.97362349,4531.4,4531.3,0.001]
[1759946714600,4.97362349,4531.4,4530.1,0.01]
[1759946714601,2.20740806,4530.2,4530.1,0.01]
[1759946714906,2.5536,4531.2,4530.1,0.01]
[1759946715088,2.42060806,4530.2,4530.1,0.01]
[1759946715496,2.20718854,4530.7,4530.1,0.01]
[1759946715691,1.92,4531.3,4530.1,0.01]
[1759946715692,2.20737533,4530.3,4530.1,0.01]
[1759946716004,2.21849189,4530.2,4530.1,0.01]
[1759946716332,2.43169189,4530.2,4530.1,0.01]
[1759946716514,2.65354108,4530.2,4530.1,0.01]
[1759946716892,0.44613302,4530.2,4530.1,0.01]
[1759946717091,2.43169189,4530.2,4530.1,0.01]
[1759946717709,0.01108383,4530.2,4530.1,0.01]
[1759946717892,0.2132,4530.7,4530.1,0.01]
[1759946718098,0.2132,4530.2,4530.1,0.01]
[1759946718328,2.42060806,4530.2,4530.1,0.01]
[1759946718500,2.43169189,4530.2,4530.1,0.01]
[1759946718706,2.89559309,4530.2,4530.1,0.01]
[1759946721721,3.52919309,4530.2,4530.1,0.01]
[1759946722095,5.44919309,4530.2,4530.1,0.01]
[1759946722327,5.43810926,4530.2,4530.1,0.01]
[1759946723298,4.80450926,4530.2,4530.1,0.011]
[1759946723496,4.34060806,4530.2,4530.1,0.011]
[1759946723697,2.1332,4530.2,4530.1,0.011]
[1759946723893,1.92,4530.2,4530.1,0.011]
[1759946724311,4.34060806,4530.2,4530.1,0.011]
[1759946724521,5.00759439,4530.2,4530.1,0.011]
[1759946724838,1.92,4530.2,4530.1,0.011]
[1759946725016,0.01108383,4530.8,4530.1,0.011]
[1759946725516,0.2132,4530.7,4530.1,0.011]
[1759946725708,2.20739663,4530.3,4530.1,0.011]
[1759946725913,2.21849189,4530.2,4530.1,0.011]
[1759946726411,2.43169189,4530.2,4530.1,0.011]
[1759946726606,0.22428383,4530.2,4530.1,0.011]
[1759946726807,2.42060806,4530.2,4530.1,0.011]
[1759946727111,0.01108383,4531.0,4530.1,0.011]
[1759946727311,0.46966838,4530.9,4530.1,0.011]
[1759946727499,0.01108383,4530.8,4530.1,0.011]
[1759946727695,0.01108383,4530.8,4530.1,2.21843527]
[1759946728031,0.11499989,4531.6,4530.1,0.011]
[1759946728202,2.20720433,4530.7,4530.1,0.011]
[1759946728400,2.21834506,4530.6,4530.1,0.011]
[1759946728599,0.2132,4530.5,4530.1,0.011]
[1759946728909,2.20740806,4530.2,4530.1,0.011]
[1759946729303,2.42060806,4530.2,4530.1,0.011]
[1759946729697,2.43169189,4530.2,4530.1,0.011]
[1759946730438,4.98529189,4530.2,4530.1,0.011]
[1759946730605,6.83556162,4530.2,4530.1,0.011]
[1759946732331,3.99455356,4530.2,4530.1,0.011]
[1759946732543,1.92,4530.2,4530.1,0.011]
[1759946732709,4.12740806,4530.2,4530.1,0.011]
[1759946733029,4.35169189,4530.2,4530.1,0.011]
[1759946733633,16.61035546,4530.2,4530.1,0.011]
[1759946733837,18.85104208,4530.2,4530.1,0.011]
[1759946734037,18.85104208,4530.2,4529.6,0.001]
[1759946734198,4.98195172,4529.7,4529.6,0.001]
[1759946734397,5.18610269,4529.7,4529.6,0.001]
[1759946734599,5.40930269,4529.7,4529.6,0.001]
[1759946734802,7.27258146,4529.7,4529.6,0.001]
[1759946736232,7.27258146,4529.7,4528.2,1e-08]
[1759946736233,2.20833425,4528.3,4528.2,1e-08]
[1759946736438,2.21941808,4528.3,4528.2,1e-08]
[1759946736734,2.44261808,4528.3,4528.2,1e-08]
[1759946737823,0.2232,4528.8,4528.2,1e-08]
[1759946738023,0.01108383,4528.7,4528.2,1e-08]
[1759946738439,0.01108383,4529.1,4528.3,2.20829504]
[1759946738735,2.21904091,4529.1,4528.2,7.316205]
[1759946738903,2.21903348,4529.1,4528.2,5.10784279]
[1759946739105,0.01108383,4529.1,4528.2,1e-08]
[1759946739303,2.20824634,4528.5,4528.2,1e-08]
[1759946739534,0.01108383,4528.7,4528.2,1e-08]
[1759946739911,2.20814813,4528.7,4528.2,1e-08]
[1759946740115,0.23428383,4528.6,4528.2,1e-08]
[1759946741068,0.23428383,4528.6,4528.2,2.208374]
[1759946741069,0.01108383,4528.6,4528.2,2.208374]
[1759946741268,2.2079964,4529.0,4528.3,0.2219374]
[1759946741435,0.01108383,4528.9,4528.2,2.661942]
[1759946741762,0.01108383,4528.9,4528.2,1e-08]
[1759946742062,2.20799606,4529.0,4528.2,7.07134399]
[1759946743954,0.2232,4528.7,4528.3,6.309]
[1759946744130,0.2232,4528.6,4528.3,6.309]
[1759946744777,2.21927182,4528.6,4528.2,1e-08]
[1759946744954,2.43144909,4528.5,4528.2,1e-08]
[1759946745160,2.20833425,4528.3,4528.2,1e-08]
[1759946745636,2.63693031,4528.3,4528.2,1e-08]
[1759946747045,0.20539606,4528.3,4528.2,1e-08]
[1759946747372,2.20809044,4528.8,4528.2,1e-08]
[1759946747665,0.2232,4529.1,4528.2,1e-08]
[1759946747666,0.21644838,4528.7,4528.2,1e-08]
[1759946747853,0.20536455,4528.6,4528.2,1e-08]
[1759946748365,0.01108383,4529.5,4528.7,2.2081304]
[1759946748536,0.1104,4529.0,4528.7,2.2081304]
[1759946748738,0.1104,4529.0,4528.8,2.20807905]
[1759946748951,0.1104,4529.0,4528.7,11.03595074]
[1759946749153,0.1104,4529.0,4528.7,8.82781304]